bitfinex/quotes_ETHUSD_20260110
["timestamp","ask_amount","ask_price","bid_price","bid_amount"]
[1768007742113,0.002,3087.3,3086.9,4.22844901]
[1768007743613,0.002,3087.0,3086.9,4.22844901]
[1768007743815,0.002,3087.3,3086.9,4.22844901]
[1768007751520,0.002,3087.3,3087.0,0.94621489]
[1768007751719,0.257,3087.8,3087.3,0.94621489]
[1768007755025,0.257,3087.8,3087.6,0.001]
[1768007760402,0.257,3087.8,3087.6,0.94721489]
[1768007760726,0.002,3087.8,3087.6,0.94721489]
[1768007766036,0.002,3087.8,3087.7,0.96354233]
[1768007766210,0.00080624,3087.9,3087.8,0.96354233]
[1768007771135,0.00080624,3087.9,3087.7,0.96354233]
[1768007775030,0.00080624,3087.9,3087.8,0.96354233]
[1768007778156,0.002,3088.6,3087.9,0.96354233]
[1768007778407,0.78270211,3088.5,3087.7,3.23859926]
[1768007778542,0.78270211,3088.5,3087.6,3.23969556]
[1768007779746,0.78270211,3088.5,3087.7,3.23863501]
[1768007780646,0.78270211,3088.5,3087.6,3.23976149]
[1768007780833,0.78270211,3088.5,3087.6,6.47852298]
[1768007782155,0.002,3088.6,3087.7,0.96354233]
[1768007782464,0.78470211,3088.6,3087.7,0.96354233]
[1768007783170,0.78470211,3088.6,3087.8,0.96354233]
[1768007787986,0.78270211,3088.5,3087.6,4.20324859]
[1768007788782,0.78270211,3088.5,3087.7,0.96354233]
[1768007789281,0.002,3088.3,3087.7,0.96354233]
[1768007792050,0.002,3088.3,3087.7,4.20219308]
[1768007792248,0.002,3088.3,3087.8,0.96354233]
[1768007798255,0.78470211,3088.3,3087.6,0.91008489]
[1768007798699,0.78270211,3088.1,3087.6,0.001]
[1768007798906,1.2013117,3088.1,3087.6,0.001]
[1768007799205,0.78270211,3088.1,3087.6,0.001]
[1768007801189,0.78470211,3088.0,3087.6,0.001]
[1768007806879,0.78270211,3087.8,3087.2,0.00085337]
[1768007807170,3.40220007,3087.9,3087.2,0.00085337]
[1768007807171,0.78270211,3087.6,3087.2,0.00085337]
[1768007807988,0.255,3087.7,3087.2,0.00085337]
[1768007808588,0.255,3087.7,3087.2,0.94233007]
[1768007809472,0.00080632,3087.9,3087.2,0.94233007]
[1768007810493,0.00080632,3087.9,3087.4,0.94130029]
[1768007811603,0.00080632,3087.9,3087.5,0.03238866]
[1768007811808,0.00080632,3087.9,3087.6,0.94130029]
[1768007820534,0.00080632,3087.9,3087.7,0.97368685]
[1768007821328,0.00080632,3087.9,3087.8,0.94130029]
[1768007824216,0.002,3088.0,3087.9,0.99068439]
[1768007827940,0.002,3088.3,3087.9,4.22913123]
[1768007828141,0.002,3088.3,3088.0,1.0230678]
[1768007829736,0.002,3088.3,3088.0,0.99068439]
[1768007831413,0.002,3088.3,3088.0,4.22899774]
[1768007831736,0.84423957,3088.2,3087.5,0.0018064]
[1768007831926,0.78270211,3088.1,3087.5,0.0018064]
[1768007832125,0.78270211,3087.9,3087.2,0.00085337]
[1768007832330,0.78270211,3087.7,3087.2,0.00085337]
[1768007835134,0.06153746,3087.8,3087.2,0.00085337]
[1768007836749,0.06153746,3087.8,3087.5,0.001]
[1768007837447,0.53315901,3087.8,3087.5,0.001]
[1768007841346,0.47162155,3087.8,3087.5,0.001]
[1768007841723,0.0008064,3087.9,3087.5,0.99168439]
[1768007846654,0.0008064,3087.9,3087.6,0.99068439]
[1768007849752,0.0028064,3087.9,3087.6,0.99068439]
[1768007854157,0.00080641,3087.9,3087.7,0.99461575]
[1768007858265,0.00080641,3087.9,3087.8,0.99461575]
[1768007859774,0.00080641,3087.9,3087.8,4.23316746]
[1768007859974,0.002,3088.3,3087.9,0.99461575]
[1768007861655,0.002,3088.3,3087.8,3.23855171]
[1768007862174,0.002,3088.3,3087.7,4.23323129]
[1768007863580,0.002,3088.3,3087.8,0.99461575]
[1768007864080,0.002,3088.3,3087.9,0.99461575]
[1768007866453,0.002,3088.3,3088.0,0.99461575]
[1768007866980,0.002,3088.6,3088.3,0.99461575]
[1768007866981,0.257,3088.6,3088.3,0.99461575]
[1768007868788,0.002,3088.6,3088.3,0.99461575]
[1768007869766,0.002,3088.6,3087.9,0.95099774]
[1768007869969,0.78470211,3088.6,3087.9,0.95099774]
[1768007872363,0.002,3088.3,3087.9,0.95099774]
[1768007880101,0.002,3088.3,3088.0,0.95099774]
[1768007880866,0.002,3088.3,3088.2,0.95099774]
[1768007881995,0.002,3088.6,3088.3,0.95099774]
[1768007882204,0.002,3088.6,3088.4,0.95099774]
[1768007885401,0.002,3088.6,3088.2,0.001]
[1768007886096,0.002,3088.6,3088.2,4.17803785]
[1768007886392,0.002,3088.6,3088.2,3.23913116]
[1768007886789,0.002,3088.6,3088.2,3.23913224]
[1768007890433,0.002,3088.6,3088.3,0.93890669]
[1768007891395,0.002,3088.6,3088.2,0.001]
[1768007891597,0.002,3088.6,3088.2,0.93990669]
[1768007892729,0.002,3088.6,3088.3,0.93890669]
[1768007897232,0.002,3088.6,3088.2,0.001]
[1768007899437,0.002,3088.6,3088.3,0.93890669]
[1768007908867,0.002,3088.6,3088.2,0.001]
[1768007909567,0.002,3088.6,3088.2,0.93990669]
[1768007911755,0.002,3088.6,3088.3,3.23802739]
[1768007911924,0.002,3088.6,3088.4,0.93890669]
[1768007913121,0.0008072,3089.1,3088.6,0.97604723]
[1768007913764,0.0008072,3089.1,3088.4,0.97604723]
[1768007914171,0.0008072,3089.1,3088.5,3.23781771]
[1768007917031,0.0008072,3089.1,3088.6,0.97604723]
[1768007918037,0.78350931,3089.1,3088.5,3.14795827]
[1768007918278,0.78270211,3088.5,3088.2,0.001]
[1768007918448,4.18326654,3088.3,3087.6,0.97604723]
[1768007918635,0.78270211,3088.1,3087.5,0.00180648]
[1768007919467,0.51151786,3088.2,3087.5,0.97785371]
[1768007922978,1.29421997,3088.2,3087.5,0.97785371]
[1768007923967,4.5323591,3088.2,3087.5,0.97785371]
[1768007924175,0.45323591,3088.1,3087.5,0.97785371]
[1768007926459,0.78270211,3088.0,3087.2,0.00085337]
[1768007926782,4.18326654,3087.8,3087.2,0.00085337]
[1768007927182,0.78270211,3087.7,3087.2,0.00085337]
[1768007927391,0.41832665,3087.6,3087.2,0.00085337]
[1768007927565,0.78270211,3087.7,3087.2,0.00085337]
[1768007930193,1.03850859,3087.9,3087.2,0.00085337]
[1768007930487,1.03850859,3087.9,3087.2,0.94278416]
[1768007930655,0.45006105,3087.8,3087.2,0.94278416]
[1768007931002,1.23276316,3087.8,3087.2,0.00085337]
[1768007932787,1.23276316,3087.8,3087.5,0.001]
[1768007933482,0.45006105,3087.8,3087.5,0.001]
[1768007934777,0.25580648,3087.9,3087.5,0.001]
[1768007944393,0.002,3087.6,3087.5,0.001]
[1768007949583,0.002,3087.6,3087.3,0.94193079]
[1768007949897,0.002,3087.6,3087.2,0.00085337]
[1768007952492,0.002,3087.6,3087.2,0.95132266]
[1768007956297,0.002,3087.6,3087.5,0.001]
[1768007956502,0.002,3087.6,3087.2,0.95132266]
[1768007968643,0.002,3087.6,3087.5,0.001]
[1768007969129,0.002,3087.6,3087.2,0.00085337]
[1768007977037,0.78555548,3087.6,3086.8,0.95706755]
[1768007977208,1.10961083,3087.6,3086.8,0.95706755]
[1768007980141,0.255,3087.5,3086.9,0.95606755]
[1768007980445,0.255,3087.5,3087.2,0.95606755]
[1768007980622,0.002,3087.3,3087.2,0.95606755]
[1768007981257,0.00285337,3087.6,3087.3,0.95606755]
[1768007981411,0.25785337,3087.6,3087.3,0.95606755]
[1768007983867,0.00285337,3087.6,3087.3,0.95606755]
[1768007988685,0.00285337,3087.6,3087.1,0.95706755]
[1768007989359,0.35864816,3087.6,3087.1,0.001]
[1768007989544,1.14135027,3087.6,3087.1,0.001]
[1768007989746,0.35864816,3087.6,3087.1,0.001]
[1768007990338,0.35864816,3087.6,3087.1,0.94027528]
[1768007991153,0.35864816,3087.6,3087.1,0.001]
[1768007991359,0.35864816,3087.6,3087.1,0.94027528]
[1768007992454,0.002,3087.3,3087.1,0.94027528]
[1768007997144,1.09923957,3087.2,3086.8,0.001]
[1768007997650,0.00099999,3086.7,3086.5,0.00080744]
[1768008001264,0.00099999,3086.7,3086.5,0.94008272]
[1768008002494,0.00099999,3086.7,3086.5,0.00080744]
[1768008002981,0.00099999,3086.7,3085.9,0.255]
[1768008002982,0.00099999,3086.7,3085.9,0.90751729]
[1768008003156,0.99486992,3086.7,3085.9,0.90751729]
[1768008006196,1.05721482,3086.9,3086.0,0.90751729]
[1768008006367,1.5032896,3086.9,3086.0,0.90751729]
[1768008008160,0.00080744,3086.9,3086.1,0.90751729]
[1768008015596,0.00080744,3086.9,3086.3,0.90851729]
[1768008015793,0.002,3086.6,3086.3,0.90851729]
[1768008021567,0.002,3086.6,3086.3,0.001]
[1768008034925,0.00280744,3086.9,3086.6,0.90752496]
[1768008040034,0.00280744,3086.9,3086.7,0.90752496]
[1768008055405,0.00280744,3086.9,3086.7,4.14722901]
[1768008055608,0.00280744,3086.9,3086.7,4.14714566]
[1768008055784,0.00080745,3086.9,3086.7,4.14714566]
[1768008055982,0.00080745,3086.9,3086.7,0.90752496]
[1768008057631,0.002,3087.3,3086.8,0.90754684]
[1768008060434,0.002,3087.3,3086.8,4.14714322]
[1768008060846,0.002,3087.3,3086.8,0.90754684]
[1768008061464,0.255,3087.5,3087.0,0.90754684]
[1768008061743,0.255,3087.5,3087.1,0.02064239]
[1768008062041,0.00285337,3087.6,3087.0,0.90754684]
[1768008063425,0.002,3087.3,3087.1,3.23928606]
[1768008064872,0.96082536,3087.9,3087.2,3.42654769]
[1768008065664,0.96082536,3087.9,3087.2,3.40589765]
[1768008066256,0.96082536,3087.9,3087.3,3.23907621]
[1768008066629,0.96082536,3087.9,3087.3,3.27146697]
[1768008067060,0.96082536,3087.9,3087.3,6.51054318]
[1768008067260,0.96082536,3087.9,3087.3,6.47815242]
[1768008067466,0.00280648,3087.9,3087.3,7.40354131]
[1768008067763,0.00280648,3087.9,3087.4,0.92538889]
[1768008067951,0.00280648,3087.9,3087.6,0.92538889]
[1768008069964,0.00280648,3087.9,3087.6,4.16413191]
[1768008070149,0.00280648,3087.9,3087.6,0.92538889]
[1768008071371,0.00280648,3087.9,3087.4,4.16435226]
[1768008073875,0.00280648,3087.9,3087.5,3.23882192]
[1768008074670,0.00280648,3087.9,3087.6,0.01977172]
[1768008074868,0.00280648,3087.9,3087.6,0.94516061]
[1768008075373,0.00280648,3087.9,3087.6,0.94616061]
[1768008075872,0.00280648,3087.9,3087.6,0.001]
[1768008078638,0.00280648,3087.9,3087.6,3.25952891]
[1768008079679,0.00280648,3087.9,3087.7,0.92538889]
[1768008079872,0.00280648,3087.9,3087.8,0.01977789]
[1768008081079,0.002,3088.2,3087.8,0.01977789]
[1768008081291,0.002,3088.2,3087.7,3.2386349]
[1768008082084,0.002,3088.2,3087.7,3.27102146]
[1768008084290,0.002,3088.2,3087.7,6.50967806]
[1768008084488,0.002,3088.2,3087.7,7.40268039]
[1768008086162,0.002,3088.2,3087.8,0.02415773]
[1768008086498,0.002,3088.2,3087.9,0.92538889]
[1768008086891,0.002,3088.2,3088.0,4.19611426]
[1768008087770,0.002,3088.2,3088.1,0.92538889]
[1768008088203,0.002,3088.2,3088.1,4.16362599]
[1768008088870,0.257,3088.6,3088.1,4.16362599]
[1768008090213,1.21501888,3088.6,3088.1,3.2382371]
[1768008090704,1.21501888,3088.6,3088.2,0.03238131]
[1768008090894,0.96001888,3088.6,3088.2,3.23812909]
[1768008091302,0.002,3088.6,3088.2,4.16351798]
[1768008092491,0.002,3088.6,3088.2,0.92538889]
[1768008092686,0.002,3088.6,3088.0,0.92538889]
[1768008095046,0.002,3088.6,3088.1,3.2382371]
[1768008099262,0.002,3088.3,3088.1,3.2382371]
[1768008100652,0.002,3088.3,3088.1,4.19723695]
[1768008109478,0.002,3088.3,3088.1,7.43547405]
[1768008109853,0.002,3088.6,3088.1,7.43547405]
[1768008111042,0.002,3088.3,3088.1,7.43547405]
[1768008111239,0.9210954,3088.6,3088.1,6.4764742]
[1768008112348,0.9210954,3088.6,3088.1,3.2382371]
[1768008114377,0.9210954,3088.6,3088.0,3.23831621]
[1768008115878,0.9210954,3088.6,3088.0,6.47665817]
[1768008116380,0.002,3088.6,3088.0,6.47665817]
[1768008116548,0.002,3088.6,3088.0,7.37798479]
[1768008119685,0.002,3088.6,3088.1,0.90132662]
[1768008121517,0.002,3088.6,3088.3,0.90132662]
[1768008121667,0.2578072,3089.1,3088.4,0.90132662]
[1768008122766,0.002,3088.6,3088.4,0.90132662]
[1768008122984,0.90850171,3089.0,3088.2,10.66664837]
[1768008123395,0.90850171,3089.0,3088.3,0.01991273]
[1768008123798,0.90850171,3089.0,3088.3,0.03238027]
[1768008124503,0.90850171,3089.0,3088.5,6.47563542]
[1768008125104,0.0028072,3089.1,3088.5,6.47563542]
[1768008125991,0.0028072,3089.1,3088.6,0.01990219]
[1768008126873,0.0028072,3089.1,3088.7,3.23760805]
[1768008128096,0.0028072,3089.1,3088.6,3.23771287]
[1768008128305,0.0028072,3089.1,3088.6,4.22234164]
[1768008129588,0.0028072,3089.1,3088.7,0.95225165]
[1768008131017,0.0028072,3089.1,3088.7,4.18977144]
[1768008131647,0.0028072,3089.1,3088.7,4.2111885]
[1768008131806,0.0028072,3089.1,3088.7,4.18977144]
[1768008135148,0.002,3088.8,3088.7,4.18977144]
[1768008135350,0.0028072,3089.1,3088.7,4.18977144]
[1768008139755,0.0028072,3089.1,3088.8,0.95225165]
[1768008141054,0.0028072,3089.1,3088.8,4.18967247]
[1768008142259,0.0028072,3089.1,3088.8,4.21114155]
[1768008144824,0.0028072,3089.1,3088.8,4.18967247]
[1768008145349,0.0028072,3089.1,3088.8,4.21114154]
[1768008145929,0.0028072,3089.1,3088.8,4.18967247]
[1768008149927,0.0028072,3089.1,3088.8,3.23742082]
[1768008151977,0.0028072,3089.1,3088.7,3.23760805]
[1768008153980,0.0028072,3089.1,3088.6,3.23767415]
[1768008154677,0.9151349,3089.1,3088.1,0.92170038]
[1768008154889,0.9151349,3089.1,3088.5,0.255]
[1768008155060,0.9151349,3089.1,3088.5,3.49280287]
[1768008156371,0.9151349,3089.1,3088.5,3.23780287]
[1768008157891,0.9151349,3089.1,3087.9,3.23841481]
[1768008157892,0.9123277,3089.0,3087.9,3.23841481]
[1768008158180,0.9123277,3089.0,3087.6,0.001]
[1768008158181,0.9123277,3088.9,3087.6,0.001]
[1768008158343,0.9123277,3088.7,3087.7,0.255]
[1768008158543,0.9123277,3088.7,3087.9,3.23843567]
[1768008160181,0.9123277,3088.7,3087.8,3.23855171]
[1768008160377,0.9123277,3088.6,3087.8,3.23855171]
[1768008162090,0.9123277,3088.6,3087.6,3.23976149]
[1768008162294,0.9123277,3088.5,3087.7,0.03238656]
[1768008163293,0.9123277,3088.4,3087.7,0.03238656]
[1768008163456,0.9123277,3088.4,3087.8,3.27093722]
[1768008163657,0.9123277,3088.4,3087.8,6.50948893]
[1768008163899,0.9123277,3088.4,3087.8,3.23855171]
[1768008165899,0.9123277,3088.4,3087.6,3.23973631]
[1768008166069,0.9123277,3087.8,3087.2,0.00085422]
[1768008166387,1.02354744,3087.5,3087.2,0.00085422]
[1768008169887,0.11121974,3087.5,3087.2,0.00085422]
[1768008172595,1.08236017,3087.5,3087.2,0.00085422]
[1768008172893,1.08236017,3087.5,3086.5,0.00080752]
[1768008172894,0.97114043,3087.4,3086.5,0.00080752]
[1768008174060,0.97114043,3087.4,3086.5,0.97497168]
[1768008174260,0.97114043,3087.4,3086.5,7.61469543]
[1768008175382,0.97114043,3087.4,3086.5,4.37480219]
[1768008176973,0.97114043,3087.4,3086.6,0.97416416]
[1768008177388,0.97114043,3087.4,3086.6,4.23782382]
[1768008177696,0.97114043,3087.4,3086.6,4.21392075]
[1768008177896,0.97114043,3087.4,3086.6,4.23782382]
[1768008178097,0.11121974,3087.5,3086.9,0.97416416]
[1768008178268,0.11121974,3087.5,3087.1,0.97416416]
[1768008178471,0.11121974,3087.5,3087.2,0.0239072]
[1768008178965,0.11121974,3087.5,3087.2,0.99807136]
[1768008180366,0.11121974,3087.5,3087.2,0.97416416]
[1768008182105,0.11121974,3087.5,3086.9,0.97416416]
[1768008182310,0.11121974,3087.5,3087.0,0.97416416]
[1768008183203,0.002,3087.2,3087.0,0.97416416]
[1768008183772,0.11321974,3087.5,3087.0,0.97416416]
[1768008186898,0.002,3087.5,3087.0,0.97416416]
[1768008192635,0.98693578,3087.5,3086.8,0.001]
[1768008194399,1.24193578,3087.5,3086.8,0.001]
[1768008194605,0.98493578,3087.4,3086.8,0.001]
[1768008195022,0.002,3087.2,3086.8,0.001]
[1768008197531,0.98493578,3087.4,3086.8,0.001]
[1768008206353,0.257,3087.5,3086.8,0.98306582]
[1768008206504,0.257,3087.5,3086.8,1.01546182]
[1768008206708,0.257,3087.5,3087.1,0.001]
[1768008213026,0.257,3087.5,3087.1,0.03339286]
[1768008215660,0.257,3087.5,3087.1,0.001]
[1768008218269,0.002,3087.2,3087.1,0.001]
[1768008218563,0.257,3087.5,3087.1,0.001]
[1768008218857,0.25500001,3087.5,3087.1,0.001]
[1768008220423,1.15540283,3087.5,3087.1,0.001]
[1768008225774,0.25500001,3087.5,3087.1,0.001]
[1768008229884,0.002,3087.2,3087.1,0.001]
[1768008230051,0.25500001,3087.5,3087.1,0.001]
[1768008235786,1e-08,3087.5,3087.1,0.97097775]
[1768008235985,1e-08,3087.5,3087.3,0.96997775]
[1768008246997,1e-08,3087.5,3087.3,0.96997775]
[1768008250190,0.00085422,3087.6,3087.4,0.9139654]
[1768008250792,0.25580656,3087.9,3087.4,0.9139654]
[1768008253101,0.95779482,3087.5,3086.4,3.24000905]
[1768008253299,0.95779482,3087.1,3086.3,3.24102758]
[1768008253666,0.95779482,3087.1,3086.4,3.23997396]
[1768008253997,0.95779482,3087.1,3086.5,3.24071978]
[1768008254200,0.02325677,3087.2,3086.5,3.24071978]
[1768008254893,0.02325677,3087.2,3086.5,4.15468518]
[1768008259780,0.02325677,3087.2,3086.7,0.9139654]
[1768008260098,0.02325677,3087.2,3086.8,0.9473614]
[1768008260278,0.02325677,3087.2,3086.8,0.9149654]
[1768008262208,0.02325677,3087.2,3086.9,0.9139654]
[1768008262580,0.00285507,3087.6,3087.0,0.9139654]
[1768008266207,0.00285507,3087.6,3087.1,0.001]
[1768008266388,0.002,3087.3,3087.1,0.001]
[1768008270219,0.95979482,3087.3,3087.1,0.001]
[1768008270537,0.002,3087.3,3087.1,0.001]
[1768008272434,0.95979482,3087.3,3087.1,0.001]
[1768008273237,0.002,3087.3,3087.1,0.001]
[1768008293255,0.00285507,3087.6,3087.1,0.001]
[1768008293256,0.00285507,3087.6,3087.3,0.91278692]
[1768008293445,0.00280656,3087.9,3087.3,0.91278692]
[1768008293630,0.00280656,3087.9,3087.4,0.91278692]
[1768008300669,0.00280656,3087.9,3087.4,4.15175273]
[1768008301037,0.002,3087.6,3087.4,4.15175273]
[1768008301245,0.00280656,3087.9,3087.5,0.91278692]
[1768008301446,0.96542253,3088.1,3087.5,0.00080664]
[1768008301867,0.96542253,3088.1,3087.5,0.91359356]
[1768008302055,0.96542253,3088.1,3087.7,0.91278692]
[1768008302561,0.002,3088.8,3088.1,0.91278692]
[1768008311060,0.002,3088.8,3088.2,0.96610803]
[1768008313678,0.002,3088.5,3088.2,0.96610803]
[1768008313883,0.002,3088.5,3088.3,0.96610803]
[1768008329260,0.0028072,3089.1,3088.6,0.96610803]
[1768008337803,0.002,3088.8,3088.6,0.96610803]
[1768008371151,0.002,3088.8,3088.3,0.99507847]
[1768008372218,0.002,3088.8,3088.2,0.255]
[1768008372717,0.002,3088.8,3088.2,1.25007847]
[1768008374019,0.002,3088.8,3088.3,1.02745874]
[1768008375961,0.002,3088.8,3088.4,0.99507847]
[1768008376175,0.002,3088.8,3088.5,1.02745664]
[1768008376862,3.45138218,3089.5,3088.5,1.02745664]
[1768008377055,0.34533822,3089.4,3089.0,0.00080536]
[1768008377253,0.34614358,3089.4,3088.7,0.00080728]
[1768008378463,0.34614358,3089.4,3088.7,0.99588575]
[1768008380445,0.00080536,3089.4,3088.7,0.99588575]
[1768008384175,0.00080536,3089.4,3088.9,0.001]
[1768008384471,0.002,3089.1,3088.9,0.001]
[1768008388976,0.002,3089.1,3088.9,0.99607847]
[1768008389181,0.002,3089.1,3088.9,0.001]
[1768008393699,0.002,3089.1,3088.9,0.92211242]
[1768008393894,0.002,3089.1,3088.9,0.001]
[1768008396190,0.002,3089.1,3089.0,0.001]
[1768008402303,0.002,3089.1,3089.0,0.92211242]
[1768008403503,0.002,3089.1,3088.9,0.001]
[1768008405382,3.40619739,3089.5,3089.0,0.00080544]
[1768008405674,0.34162518,3089.4,3088.9,0.001]
[1768008407702,3.578516,3089.4,3088.7,0.00080728]
[1768008407876,0.002,3089.1,3088.7,0.00080728]
[1768008408905,0.002,3089.1,3088.7,0.9219197]
[1768008458693,0.00280544,3089.4,3088.8,0.99586617]
[1768008465101,0.00280544,3089.4,3088.7,0.00080728]
[1768008465320,0.00280728,3089.1,3087.8,0.99586617]
[1768008465474,0.34024056,3089.0,3087.9,0.99586617]
[1768008465676,3.23739842,3088.9,3087.9,0.99586617]
[1768008466014,6.47479684,3088.9,3087.9,0.99586617]
[1768008466321,3.39959831,3088.8,3087.7,0.99586617]
[1768008466493,0.98743951,3088.7,3087.7,0.99586617]
[1768008469012,4.22506195,3088.7,3087.7,0.99586617]
[1768008476866,4.22506195,3088.7,3088.0,0.001]
[1768008477039,0.255,3088.6,3088.0,0.001]
[1768008481358,0.255,3088.6,3088.0,0.99105255]
[1768008482648,0.60426201,3088.6,3088.0,0.99105255]
[1768008491700,0.255,3088.6,3088.0,0.99105255]
[1768008492031,0.255,3088.6,3088.2,0.93011412]
[1768008492781,3.83256091,3089.0,3088.2,0.93011412]
[1768008497690,0.59524056,3089.0,3088.2,0.93011412]
[1768008497890,0.59524056,3089.0,3088.2,0.96249544]
[1768008498415,0.59524056,3089.0,3088.2,0.93011412]
[1768008498918,0.59524056,3089.0,3088.2,0.96249544]
[1768008499806,0.59524056,3089.0,3088.4,0.93011412]
[1768008500010,0.002,3088.7,3088.4,0.93011412]
[1768008504008,0.002,3088.7,3088.3,0.03338027]
[1768008505055,0.002,3088.7,3088.3,0.001]
[1768008509326,0.002,3088.7,3088.3,0.93111412]
[1768008512675,0.002,3088.7,3088.5,0.001]
[1768008513041,0.002,3088.7,3088.5,0.92413306]
[1768008548846,0.002,3088.7,3088.6,0.95607548]
[1768008549766,0.002,3089.0,3088.7,0.92369836]
[1768008562269,0.002,3089.0,3088.8,0.95607339]
[1768008563054,0.00280728,3089.1,3089.0,0.92369836]
[1768008570270,0.00280728,3089.1,3089.0,0.92469836]
[1768008591790,0.00280728,3089.1,3089.0,0.95707129]
[1768008592689,0.00280728,3089.1,3089.0,0.92469836]
[1768008604194,0.00080728,3089.1,3089.0,0.99183804]
[1768008611476,0.00080728,3089.1,3089.0,0.001]
[1768008616226,0.00080728,3089.1,3089.0,0.99183804]
[1768008620354,0.00080728,3089.1,3089.0,0.001]
[1768008666335,0.00080728,3089.1,3088.5,0.001]
[1768008666533,0.3407802,3089.1,3088.5,0.001]
[1768008674271,0.3407802,3089.1,3088.8,0.001]
[1768008687580,3.39972918,3089.1,3088.5,0.96707961]
[1768008687777,6.63692524,3089.1,3088.5,0.96707961]
[1768008688890,0.00080728,3089.1,3088.5,0.96707961]
[1768008693886,3.39972918,3089.1,3088.5,0.96707961]
[1768008694074,3.39972918,3089.1,3088.5,0.001]
[1768008694274,1.01289948,3089.0,3088.5,0.001]
[1768008697194,1.01289948,3089.0,3088.8,0.001]
[1768008697389,1.01289948,3089.0,3088.5,0.90141569]
[1768008697764,4.25022708,3089.0,3088.5,0.90141569]
[1768008698064,0.76499563,3088.9,3088.5,0.90141569]
[1768008699714,4.00241441,3088.9,3088.5,0.90141569]
[1768008699873,4.00241441,3088.9,3088.5,0.001]
[1768008700268,4.00241441,3088.9,3088.3,0.001]
[1768008700797,3.3989219,3088.8,3088.3,0.001]
[1768008701000,0.74013363,3088.7,3088.3,0.001]
[1768008704005,3.9777522,3088.7,3088.1,0.90041569]
[1768008707316,4.2327522,3088.7,3088.1,0.90041569]
[1768008708308,0.99513363,3088.7,3088.1,0.90041569]
[1768008708694,0.255,3088.7,3088.1,0.90041569]
[1768008709183,0.255,3088.7,3088.4,0.001]
[1768008709388,0.255,3088.7,3088.4,0.90141569]
[1768008717205,4.19996703,3089.1,3088.4,0.90141569]
[1768008717206,0.90122297,3089.1,3088.4,0.90141569]
[1768008717436,0.41383234,3089.0,3088.4,0.90141569]
[1768008717611,0.25580728,3089.1,3088.4,0.90141569]
[1768008719131,3.4930022,3089.1,3088.4,0.90141569]
[1768008720449,3.49300374,3089.1,3088.4,0.90141569]
[1768008720731,3.49300374,3089.1,3088.4,1.40141569]
[1768008720732,0.002,3088.7,3088.4,1.40141569]
[1768008722339,0.002,3088.7,3088.5,0.91461399]
[1768008739646,0.002,3089.0,3088.7,0.99231537]
[1768008744654,0.002,3089.0,3088.8,0.99231537]
[1768008744820,0.00080728,3089.1,3089.0,0.99231537]
[1768008756373,0.00280728,3089.1,3089.0,0.99231537]
[1768008756573,0.00280544,3089.4,3089.1,0.95900915]
[1768008760161,0.002,3089.8,3089.5,0.95900915]
[1768008760389,0.002,3089.8,3089.5,0.94256529]
[1768008764588,0.002,3089.8,3089.2,4.4510785]
[1768008764882,0.002,3089.8,3089.3,0.95900915]
[1768008766987,0.002,3089.8,3089.2,3.49206935]
[1768008767185,0.002,3089.8,3089.2,4.4510785]
[1768008767369,0.002,3089.8,3089.3,0.95900915]
[1768008767992,0.002,3089.5,3089.3,0.95900915]
[1768008768284,0.002,3089.5,3089.4,0.95900915]
[1768008774199,0.002,3089.8,3089.4,0.95900915]
[1768008774568,0.002,3089.8,3089.5,0.93256194]
[1768008780283,0.002,3089.8,3089.6,0.93256194]
[1768008784809,0.002,3089.8,3089.4,1.02897616]
[1768008785311,0.002,3089.8,3089.5,0.5]
[1768008790196,0.002,3089.8,3089.6,0.99660742]
[1768008791719,0.002,3089.9,3089.7,0.99660742]
[1768008799443,0.002,3090.1,3089.7,0.99660742]
[1768008800616,0.002,3090.1,3089.5,1.49660742]
[1768008803542,0.002,3089.7,3089.5,1.49660742]
[1768008805637,0.002,3090.1,3089.5,1.49660742]
[1768008805832,0.002,3090.1,3089.6,0.99660742]
[1768008813143,0.00080593,3090.0,3089.7,0.99188849]
[1768008816361,0.00080593,3090.0,3089.6,0.000806]
[1768008819581,3.39856584,3090.0,3089.6,0.000806]
[1768008819732,3.73942842,3090.0,3089.5,0.5]
[1768008822254,3.73942842,3090.0,3089.3,0.99188849]
[1768008822437,6.97567667,3090.0,3089.3,0.99188849]
[1768008822755,3.39775991,3089.7,3089.0,0.99269401]
[1768008823053,0.0561935,3089.3,3089.0,0.99269401]
[1768008823564,0.0561935,3089.3,3089.0,0.00080552]
[1768008829565,0.0561935,3089.3,3089.0,0.99269401]
[1768008831657,0.0541935,3089.3,3089.1,0.92387675]
[1768008833988,0.0521935,3089.3,3089.1,0.92387675]
[1768008836690,0.254,3089.8,3089.1,0.92387675]
[1768008836870,0.254,3089.8,3089.3,0.92387675]
[1768008840293,0.254,3089.8,3089.3,0.92487675]
[1768008840494,0.002,3089.5,3089.3,0.92487675]
[1768008841205,0.002,3089.5,3089.4,0.95624549]
[1768008842722,0.002,3089.5,3089.4,0.92387675]
[1768008843875,0.002,3089.8,3089.5,0.91594421]
[1768008844084,0.00161193,3090.0,3089.5,0.91594421]
[1768008847308,0.00161193,3090.0,3089.6,0.91594421]
[1768008852220,0.00161193,3090.0,3089.8,0.91694421]
[1768008854732,0.002,3090.1,3089.8,0.91694421]
[1768008872259,0.002,3090.1,3089.6,0.91675029]
[1768008872467,0.82096426,3089.9,3089.3,0.001]
[1768008873353,0.82096426,3089.9,3088.9,0.92844504]
[1768008873354,3.39965004,3089.8,3089.0,0.00080552]
[1768008873553,0.82096426,3089.6,3089.0,0.00080552]
[1768008873878,0.82176978,3089.4,3088.7,0.9292524]
[1768008874727,0.82176978,3089.4,3088.7,0.00080736]
[1768008876171,0.82096426,3089.3,3089.0,0.001]
[1768008876366,0.40586954,3089.2,3088.7,0.00080736]
[1768008876948,0.82096426,3089.3,3088.7,0.00080736]
[1768008880281,0.82096426,3089.3,3088.9,0.5]
[1768008881056,0.82096426,3089.3,3088.7,0.00080736]
[1768008881793,0.00080552,3089.4,3088.7,0.9292524]
[1768008881951,0.32375921,3089.3,3088.7,0.9292524]
[1768008883101,0.00080552,3089.4,3088.7,0.9292524]
[1768008885185,0.00080552,3089.4,3088.9,0.92844504]